bitfinex-derivatives/quotes_BTCF0:USTF0_20250710
["timestamp","ask_amount","ask_price","bid_price","bid_amount"]
[1752184453605,0.49992393,116530.0,116520.0,0.64926457]
[1752184455907,0.59762393,116530.0,116520.0,0.64926457]
[1752184456607,0.20118001,116530.0,116520.0,0.64926457]
[1752184456807,0.59714392,116530.0,116520.0,0.55606457]
[1752184457022,0.64504392,116530.0,116520.0,0.45866457]
[1752184457204,0.3397,116530.0,116520.0,0.36124]
[1752184457405,0.04746,116520.0,116500.0,0.4079]
[1752184457609,1.56954392,116510.0,116500.0,0.00052]
[1752184457810,1.88348393,116510.0,116490.0,0.4079]
[1752184458014,0.62540392,116500.0,116490.0,0.44223399]
[1752184458210,0.41126,116530.0,116500.0,0.0471]
[1752184458410,0.49644392,116520.0,116510.0,0.0471]
[1752184458611,0.39644392,116520.0,116510.0,0.2406]
[1752184458809,0.39644392,116520.0,116510.0,0.65172457]
[1752184459214,0.39644392,116520.0,116510.0,0.29092457]
[1752184459413,0.23556,116530.0,116510.0,0.24382457]
[1752184459608,1.45828,116530.0,116520.0,0.09742457]
[1752184459919,1.85472392,116530.0,116520.0,0.09742457]
[1752184460311,1.45828,116530.0,116520.0,0.09742457]
[1752184460620,1.85472392,116530.0,116520.0,0.09742457]
[1752184460913,0.49944392,116530.0,116520.0,0.09742457]
[1752184461114,0.103,116530.0,116520.0,0.28642457]
[1752184461307,0.49944392,116530.0,116520.0,0.28642457]
[1752184461911,0.49944392,116530.0,116520.0,0.64722457]
[1752184462311,0.1945,116530.0,116520.0,0.64722457]
[1752184462514,0.59094392,116530.0,116520.0,0.64722457]
[1752184462917,0.1945,116530.0,116520.0,0.64722457]
[1752184463117,0.59094392,116530.0,116520.0,0.64770457]
[1752184463324,0.50004393,116530.0,116520.0,0.64770457]
[1752184464124,0.50004393,116530.0,116520.0,0.28690457]
[1752184464322,0.50004393,116530.0,116520.0,0.28642457]
[1752184464521,0.10360001,116530.0,116520.0,0.64722457]
[1752184464724,0.103,116530.0,116520.0,0.64766457]
[1752184465122,0.49944392,116530.0,116520.0,0.64766457]
[1752184465316,0.10356001,116530.0,116520.0,0.64766457]
[1752184465516,0.49944392,116530.0,116520.0,0.64766457]
[1752184465722,0.60004393,116530.0,116520.0,0.64766457]
[1752184466523,0.20360001,116530.0,116520.0,0.64766457]
[1752184466724,0.59944392,116530.0,116520.0,0.64766457]
[1752184467026,0.60004393,116530.0,116520.0,0.64766457]
[1752184467424,0.20360001,116530.0,116520.0,0.64766457]
[1752184467627,0.59944392,116530.0,116520.0,0.64766457]
[1752184467828,0.60004393,116530.0,116520.0,0.64766457]
[1752184468025,0.05327544,116530.0,116520.0,1.01898]
[1752184468224,0.002,116570.0,116530.0,0.04585]
[1752184468427,0.102,116570.0,116560.0,0.40665]
[1752184468632,0.39844392,116600.0,116570.0,0.04585]
[1752184468926,0.002,116600.0,116590.0,0.04585]
[1752184469117,0.002,116600.0,116590.0,0.40665]
[1752184469322,0.002,116610.0,116600.0,0.04585]
[1752184469517,0.102,116610.0,116600.0,0.40665]
[1752184469722,0.102,116610.0,116600.0,0.50035]
[1752184469929,0.49844392,116610.0,116600.0,0.50035]
[1752184470121,0.102,116610.0,116600.0,0.50035]
[1752184470317,0.49844392,116610.0,116600.0,0.50035]
[1752184470527,0.102,116610.0,116600.0,0.50035]
[1752184470828,0.39844392,116610.0,116600.0,0.50035]
[1752184471223,0.002,116610.0,116600.0,0.50035]
[1752184471620,0.44604392,116610.0,116600.0,0.40665]
[1752184471824,0.54454392,116610.0,116600.0,0.3608]
[1752184472420,0.6133302,116610.0,116600.0,0.3608]
[1752184472617,1.35977412,116610.0,116580.0,0.3608]
[1752184472822,0.44404392,116590.0,116570.0,0.04585]
[1752184473022,0.73154392,116580.0,116560.0,0.36251578]
[1752184473223,0.53374392,116570.0,116560.0,0.40880578]
[1752184473523,0.63206393,116570.0,116560.0,0.40880578]
[1752184473727,0.63206393,116570.0,116560.0,0.36295578]
[1752184474627,0.73206393,116570.0,116560.0,0.36295578]
[1752184474927,0.73206393,116570.0,116560.0,0.00215578]
[1752184475125,0.73206393,116570.0,116560.0,0.00171578]
[1752184475326,0.33562001,116570.0,116560.0,0.36251578]
[1752184475632,0.73306393,116570.0,116560.0,0.40880578]
[1752184476233,0.33662001,116570.0,116560.0,0.40880578]
[1752184476827,0.73306393,116570.0,116560.0,0.40880578]
[1752184477224,0.33662001,116570.0,116560.0,0.40880578]
[1752184477422,0.73306393,116570.0,116560.0,0.36295578]
[1752184478233,0.33662001,116570.0,116560.0,0.00215578]
[1752184478431,0.73306393,116570.0,116560.0,0.00171578]
[1752184478822,0.73306393,116570.0,116560.0,0.36251578]
[1752184479033,0.73306393,116570.0,116560.0,0.00171578]
[1752184479235,0.73306393,116570.0,116560.0,0.40836578]
[1752184479427,0.73306393,116570.0,116560.0,0.04756578]
[1752184479622,0.10152001,116570.0,116560.0,0.40836578]
[1752184479824,0.01790931,116590.0,116560.0,1.01864178]
[1752184480030,0.1,116590.0,116580.0,0.40665]
[1752184480327,0.003,116610.0,116580.0,1.11804392]
[1752184480628,0.003,116610.0,116600.0,0.7216]
[1752184480837,0.11030527,116640.0,116600.0,0.89312]
[1752184481026,0.55434919,116640.0,116630.0,0.7216]
[1752184481422,0.02010527,116640.0,116630.0,0.893072]
[1752184482723,0.06770527,116640.0,116630.0,0.7216]
[1752184482929,0.0496,116640.0,116630.0,0.7216]
[1752184483230,0.1433,116640.0,116630.0,0.72208]
[1752184483434,0.239,116640.0,116630.0,0.72208]
[1752184483637,0.239,116640.0,116630.0,0.36128]
[1752184484429,0.239,116640.0,116630.0,0.00048]
[1752184484632,0.239,116640.0,116620.0,0.4504]
[1752184484833,0.1433,116640.0,116620.0,0.54714]
[1752184485132,0.0496,116640.0,116630.0,0.0981]
[1752184485337,0.1496,116640.0,116630.0,0.1944]
[1752184488130,0.2474,116640.0,116630.0,0.0981]
[1752184488439,0.345,116640.0,116620.0,0.3608]
[1752184488634,0.2454,116630.0,116620.0,0.36128]
[1752184488835,0.1476,116630.0,116620.0,0.18818]
[1752184489034,0.1476,116630.0,116620.0,0.5285]
[1752184489241,0.1476,116630.0,116620.0,0.52894]
[1752184489833,0.1,116630.0,116620.0,0.52894]
[1752184490036,0.1476,116630.0,116620.0,0.43104]
[1752184490237,0.1476,116630.0,116620.0,0.36124]
[1752184490432,0.3433,116630.0,116620.0,0.36124]
[1752184490630,0.34378001,116630.0,116620.0,0.00044]
[1752184490830,0.0476,116620.0,116610.0,0.3608]
[1752184491137,0.50208642,116620.0,116610.0,0.00044]
[1752184491336,0.40442642,116620.0,116610.0,0.3608]
[1752184491538,0.40442642,116620.0,116610.0,0.45764]
[1752184492034,0.50252642,116620.0,116610.0,0.36124]
[1752184492230,0.60072642,116620.0,116610.0,0.36124]
[1752184492633,0.60072642,116620.0,116610.0,0.00044]
[1752184492828,0.60072642,116620.0,116610.0,0.3608]
[1752184493031,0.60072642,116620.0,116610.0,0.36124]
[1752184493432,0.60072642,116620.0,116610.0,0.00044]
[1752184493632,0.10044,116620.0,116610.0,0.3608]
[1752184493838,0.04571,116630.0,116610.0,0.54704]
[1752184494040,0.14241,116630.0,116610.0,0.54704]
[1752184494237,0.24241,116630.0,116620.0,0.0958]
[1752184494640,0.1967,116630.0,116600.0,0.00171519]
[1752184494839,0.04571,116610.0,116600.0,0.18771519]
[1752184495339,0.195,116620.0,116600.0,0.72003519]
[1752184495534,0.24071,116620.0,116600.0,0.54895519]
[1752184495732,0.24071,116620.0,116610.0,0.1845]
[1752184496241,0.04571,116620.0,116610.0,0.5453]
[1752184496429,0.04571,116620.0,116610.0,0.54578]
[1752184496740,0.04571,116620.0,116610.0,0.36128]
[1752184496932,0.04571,116620.0,116610.0,0.00048]
[1752184496933,0.23521,116620.0,116610.0,0.00048]
[1752184497130,0.23521,116620.0,116600.0,0.43230219]
[1752184497340,0.23521,116620.0,116610.0,0.0924]
[1752184497534,0.23521,116620.0,116610.0,0.3608]
[1752184497740,0.23521,116620.0,116610.0,0.36128]
[1752184497928,0.23521,116620.0,116610.0,0.00048]
[1752184498132,0.04571,116610.0,116600.0,0.45491519]
[1752184498332,0.13621,116610.0,116600.0,0.45535519]
[1752184498630,0.22911,116610.0,116600.0,0.45535519]
[1752184498830,0.22911,116610.0,116600.0,0.36295519]
[1752184499538,0.13621,116610.0,116600.0,0.36295519]
[1752184499839,0.04571,116610.0,116600.0,0.62205675]
[1752184500537,0.13621,116610.0,116600.0,0.52495675]
[1752184500742,0.23041,116610.0,116600.0,0.52495675]
[1752184501541,0.23041,116610.0,116600.0,0.43255675]
[1752184502544,0.23041,116610.0,116600.0,0.52605675]
[1752184502942,0.62570058,116610.0,116600.0,0.52605675]
[1752184503244,0.62614058,116610.0,116600.0,0.52605675]
[1752184503542,0.62614058,116610.0,116600.0,0.36295519]
[1752184504144,0.23085,116610.0,116600.0,0.36295519]
[1752184504339,0.62570058,116610.0,116600.0,0.36295519]
[1752184504544,0.62614058,116610.0,116600.0,0.36295519]
[1752184504840,0.33085,116610.0,116600.0,0.36295519]
[1752184505037,0.72614058,116610.0,116600.0,0.36295519]
[1752184505244,0.72614058,116610.0,116600.0,0.00215519]
[1752184505450,0.89766058,116610.0,116600.0,0.00171519]
[1752184505743,1.25846058,116610.0,116600.0,0.00171519]
[1752184506131,0.86317,116610.0,116600.0,0.00171519]
[1752184506334,1.25846058,116610.0,116600.0,0.00171519]
[1752184507540,1.21275058,116610.0,116580.0,0.3608]
[1752184507735,0.54100058,116590.0,116580.0,0.00044]
[1752184507940,0.54144058,116590.0,116580.0,0.3608]
[1752184508141,0.73404058,116590.0,116580.0,0.3608]
[1752184509646,0.33875,116590.0,116580.0,0.3608]
[1752184509846,0.73404058,116590.0,116580.0,0.3608]
[1752184510046,0.73404058,116590.0,116570.0,0.3608]
[1752184510242,0.63090058,116580.0,116570.0,0.3608]
[1752184511648,0.23561,116580.0,116570.0,0.3608]
[1752184511840,0.3608,116600.0,116570.0,0.36251]
[1752184512146,0.002,116610.0,116600.0,0.00171]
[1752184512342,0.002,116610.0,116600.0,0.54381]
[1752184513048,0.002,116610.0,116600.0,0.54425]
[1752184513546,0.04771,116610.0,116600.0,0.54425]
[1752184514148,0.002,116610.0,116600.0,0.54425]
[1752184519763,0.80380058,116610.0,116600.0,0.00044]
[1752184519967,0.94343058,116610.0,116570.0,0.5377]
[1752184520158,0.04571,116590.0,116570.0,0.53985]
[1752184520360,0.44100058,116590.0,116580.0,0.3608]
[1752184520561,0.62638059,116590.0,116580.0,0.36128]
[1752184521363,0.23109001,116590.0,116580.0,0.36128]
[1752184521663,0.62590058,116590.0,116580.0,0.00048]
[1752184521854,0.58063058,116590.0,116580.0,0.3608]
[1752184522058,0.23303,116590.0,116580.0,0.36124]
[1752184522364,0.39529058,116590.0,116580.0,0.36124]
[1752184522666,0.04813,116590.0,116580.0,0.36124]
[1752184522856,0.04769,116590.0,116580.0,0.36295]
[1752184523058,0.04769,116590.0,116580.0,0.72375]
[1752184523258,0.04769,116590.0,116580.0,0.90905]
[1752184524062,0.04769,116590.0,116580.0,0.54825]
[1752184524759,0.14239,116600.0,116580.0,0.54825]
[1752184525066,0.002,116610.0,116590.0,0.84809058]
[1752184525262,0.04769,116630.0,116600.0,0.84809058]
[1752184525471,0.63198058,116640.0,116620.0,0.3608]
[1752184525672,0.63258059,116640.0,116630.0,0.092]
[1752184525868,0.73258059,116640.0,116630.0,0.4528]
[1752184526073,0.73258059,116640.0,116630.0,0.0926]
[1752184526374,0.73258059,116640.0,116630.0,0.092]
[1752184527472,0.73258059,116640.0,116630.0,0.16153005]
[1752184528568,1.09338059,116640.0,116630.0,0.16153005]
[1752184528767,0.04769,116630.0,116620.0,0.3608]
[1752184528961,0.63298058,116630.0,116620.0,0.3608]
[1752184529167,0.72248058,116630.0,116620.0,0.3608]
[1752184529571,0.67479058,116630.0,116610.0,0.448]
[1752184529867,0.13769,116620.0,116610.0,0.448]
[1752184530072,0.13769,116620.0,116610.0,0.8088]
[1752184530568,0.44498058,116640.0,116610.0,0.8790237]
[1752184530767,0.1,116630.0,116620.0,0.4494]
[1752184530975,0.1,116630.0,116620.0,0.8102]
[1752184531165,0.1,116630.0,116620.0,0.8839]
[1752184531767,0.1882,116630.0,116620.0,0.8839]
[1752184532072,0.23589,116630.0,116620.0,0.8102]
[1752184533168,0.23589,116630.0,116620.0,0.8108]
[1752184533373,0.23589,116630.0,116620.0,0.45]
[1752184533575,0.23589,116630.0,116620.0,0.0892]
[1752184533877,0.23589,116630.0,116620.0,0.4494]
[1752184534076,0.1882,116630.0,116620.0,0.45]
[1752184534472,0.23589,116630.0,116620.0,0.5236]
[1752184535075,0.23589,116630.0,116620.0,0.45]
[1752184536272,0.63118058,116630.0,116620.0,0.3614]
[1752184536472,0.72452058,116630.0,116620.0,0.3614]
[1752184537176,0.22923,116630.0,116620.0,0.3614]
[1752184537376,0.62408058,116630.0,116620.0,0.3614]
[1752184537575,0.62456059,116630.0,116620.0,0.3614]
[1752184538779,0.22927001,116630.0,116620.0,0.3614]
[1752184538978,0.002,116640.0,116620.0,0.3614]
[1752184539178,0.04969,116640.0,116630.0,0.3608]
[1752184539374,0.22719,116640.0,116630.0,0.3608]
[1752184540880,0.62248058,116640.0,116630.0,0.3608]
[1752184541270,0.22719,116640.0,116630.0,0.3608]
[1752184542376,0.32719,116640.0,116630.0,0.446]
[1752184542773,0.32719,116640.0,116630.0,0.3608]
[1752184543279,0.32779001,116640.0,116630.0,0.3614]
[1752184543975,0.10260001,116640.0,116630.0,0.3614]
[1752184544175,0.002,116640.0,116630.0,0.4484]
[1752184544777,0.002,116640.0,116630.0,0.522]
[1752184544974,0.002,116650.0,116630.0,0.943472]
[1752184545185,0.002,116650.0,116640.0,0.5214]
[1752184545569,0.002,116650.0,116640.0,0.692864]
[1752184546577,0.002,116650.0,116640.0,0.619264]
[1752184546777,0.0962,116650.0,116640.0,0.619264]
[1752184547278,0.002,116650.0,116640.0,0.258464]
[1752184547470,0.002,116650.0,116640.0,0.619264]
[1752184547671,0.002,116650.0,116640.0,0.4478]
[1752184547876,0.002,116650.0,116640.0,0.4484]
[1752184548170,0.14289,116650.0,116640.0,0.4484]
[1752184548374,0.23139,116650.0,116640.0,0.4484]
[1752184549480,0.14289,116650.0,116640.0,0.4484]
[1752184549980,0.91669722,116650.0,116640.0,0.0006]
[1752184550180,0.95884722,116650.0,116630.0,0.3608]
[1752184550382,0.62298058,116640.0,116630.0,0.3614]
[1752184550683,0.22829001,116640.0,116630.0,0.3614]
[1752184550883,0.62298058,116640.0,116630.0,0.3614]
[1752184551085,0.62358059,116640.0,116630.0,0.3614]
[1752184551279,0.22829001,116640.0,116630.0,0.3614]
[1752184551477,0.22769,116640.0,116630.0,0.3614]
[1752184551986,0.62298058,116640.0,116630.0,0.3614]
[1752184552183,0.62358059,116640.0,116630.0,0.3614]
[1752184552382,0.53418059,116640.0,116630.0,0.3614]
[1752184552582,0.23209001,116640.0,116630.0,0.3614]
[1752184552780,0.23149,116640.0,116630.0,0.3614]
[1752184553881,0.23149,116640.0,116630.0,0.4496]
[1752184554882,0.06616297,116650.0,116630.0,0.4496]
[1752184555080,0.06616297,116650.0,116640.0,0.3608]
[1752184555279,0.15336297,116650.0,116640.0,0.3608]
[1752184555485,0.15336297,116650.0,116640.0,0.4484]
[1752184555982,0.15336297,116650.0,116640.0,0.0876]
[1752184556178,0.10691297,116650.0,116640.0,0.4484]
[1752184556582,0.10691297,116650.0,116640.0,0.519]
[1752184557277,0.10691297,116650.0,116640.0,2.70916]
[1752184557477,0.002,116650.0,116640.0,2.70916]
[1752184557985,0.0906,116660.0,116640.0,2.70916]
[1752184558180,0.0906,116660.0,116650.0,0.75609058]
[1752184558380,0.0906,116660.0,116650.0,0.51954]
[1752184558585,0.13705,116670.0,116650.0,0.51954]
[1752184558782,0.23705,116670.0,116650.0,0.51954]
[1752184559089,0.23705,116670.0,116660.0,0.3608]
[1752184559285,0.23705,116670.0,116660.0,0.3614]
[1752184559985,0.23705,116670.0,116660.0,0.4489]
[1752184561384,0.23705,116670.0,116660.0,2.63798]
[1752184561884,0.1906,116670.0,116660.0,2.63798]
[1752184562089,0.0906,116670.0,116660.0,2.70858]
[1752184564289,0.13705,116670.0,116660.0,2.70858]
[1752184564589,0.13705,116670.0,116660.0,2.63798]
[1752184564792,0.002,116680.0,116660.0,2.63798]
[1752184564984,0.13775,116680.0,116670.0,0.4496]
[1752184565190,0.16834,116680.0,116670.0,0.4496]
[1752184565585,0.26834,116680.0,116670.0,0.4496]
[1752184566095,0.66363058,116680.0,116670.0,0.4496]
[1752184566295,0.07904,116680.0,116670.0,0.4496]
[1752184566588,0.17294,116680.0,116670.0,0.4496]
[1752184566788,0.002,116680.0,116670.0,0.4396]
[1752184566989,0.002,116690.0,116670.0,1.25630657]
[1752184567182,0.002,116690.0,116680.0,2.6182]
[1752184567687,0.13885,116710.0,116680.0,3.18489058]
[1752184567889,0.1939,116710.0,116700.0,0.3608]
[1752184568089,0.002,116720.0,116700.0,2.54792]
[1752184568284,0.53584058,116730.0,116710.0,0.3608]
[1752184568481,0.1937,116720.0,116710.0,0.36906391]
[1752184568891,0.0001,116740.0,116710.0,0.79042391]
[1752184569188,0.0001,116740.0,116730.0,0.3608]
[1752184569381,0.0001,116740.0,116730.0,0.432]
[1752184569582,0.0001,116740.0,116730.0,0.60332799]
[1752184570095,0.0001,116740.0,116730.0,0.69372799]
[1752184570291,0.39729058,116760.0,116730.0,1.4947575]
[1752184570292,0.002,116760.0,116730.0,1.4947575]
[1752184570593,0.002,116770.0,116750.0,1.11689058]
[1752184570791,0.002,116770.0,116760.0,0.5191]
[1752184571095,0.002,116770.0,116760.0,0.5197]
[1752184571296,0.04845,116770.0,116760.0,0.4491]
[1752184571590,0.89264058,116770.0,116760.0,0.5006]
[1752184571791,0.22769,116770.0,116760.0,0.5006]
[1752184571985,0.62254058,116770.0,116760.0,0.8614]
[1752184572192,0.62314059,116770.0,116760.0,0.8614]
[1752184572390,0.62314059,116770.0,116760.0,0.5006]
[1752184572897,0.62314059,116770.0,116760.0,0.0006]
[1752184573092,0.04645,116760.0,116750.0,0.3608]
[1752184573293,0.22435,116760.0,116750.0,0.3608]
[1752184574593,0.22435,116760.0,116750.0,0.4485]
[1752184574792,0.1779,116760.0,116750.0,0.4485]
[1752184575892,0.003,116770.0,116750.0,1.37588658]
[1752184576100,0.003,116770.0,116760.0,0.3608]
[1752184576295,0.04945,116770.0,116760.0,0.3608]
[1752184576690,0.003,116770.0,116760.0,0.4472]
[1752184576993,0.0919,116770.0,116760.0,0.4472]
[1752184577791,0.003,116770.0,116760.0,0.5178]
[1752184577998,0.0906,116770.0,116760.0,0.5184]
[1752184578189,0.15526916,116770.0,116760.0,0.0006]
[1752184578396,1.38029774,116770.0,116730.0,0.07007482]
[1752184578597,1.38029774,116770.0,116720.0,0.00171343]
[1752184578598,0.3608,116740.0,116720.0,0.00171343]
[1752184578793,0.89664058,116730.0,116720.0,0.00171343]
[1752184578999,0.04645,116720.0,116690.0,0.00767351]
[1752184579194,0.44174058,116700.0,116690.0,0.0864]
[1752184579393,0.80302059,116700.0,116680.0,0.07240655]
[1752184579594,0.14645,116690.0,116680.0,0.45380655]
[1752184579903,0.14645,116690.0,116680.0,0.36295402]
[1752184580405,0.14645,116690.0,116680.0,0.00215402]
[1752184580606,0.54174058,116690.0,116680.0,0.00171402]
[1752184580903,0.23333001,116690.0,116680.0,0.00171402]
[1752184581105,0.62814058,116690.0,116680.0,0.00171402]
[1752184581305,0.62858058,116690.0,116660.0,0.3608]
[1752184581499,0.0864,116680.0,116660.0,0.36132]
[1752184581699,0.04645,116670.0,116660.0,0.36132]
[1752184581901,0.04645,116670.0,116660.0,0.72212]
[1752184583599,0.04645,116670.0,116660.0,0.81432]
[1752184584606,0.13075,116670.0,116660.0,0.81432]
[1752184586700,0.13175,116670.0,116660.0,0.81432]
[1752184587807,0.0853,116670.0,116660.0,1.20961058]
[1752184588011,0.0853,116670.0,116660.0,0.81432]
[1752184588208,0.0853,116670.0,116660.0,1.20961058]
[1752184588509,0.001,116670.0,116660.0,1.38104258]
[1752184588717,0.001,116670.0,116660.0,0.985752]
[1752184588912,0.001,116670.0,116660.0,1.38104258]
[1752184589406,0.001,116670.0,116660.0,1.88104258]
[1752184589808,0.001,116670.0,116660.0,1.485752]
[1752184590010,0.001,116670.0,116660.0,1.88104258]
[1752184590507,0.002,116690.0,116660.0,2.13104258]
[1752184590711,0.102,116690.0,116680.0,1.11689058]
[1752184591005,0.102,116690.0,116680.0,0.81624884]
[1752184591006,0.1914,116690.0,116680.0,0.81624884]
[1752184591206,0.102,116690.0,116680.0,0.81624884]
[1752184591406,0.102,116690.0,116680.0,0.88484884]
[1752184591602,0.102,116690.0,116680.0,1.28013942]
[1752184591911,0.22438,116700.0,116680.0,1.45153942]
[1752184591912,0.0894,116700.0,116680.0,1.45153942]
[1752184592107,0.0894,116700.0,116690.0,0.84979058]
[1752184592313,0.0894,116700.0,116690.0,0.45494]
[1752184595207,0.0894,116700.0,116690.0,0.09414]
[1752184595415,0.0894,116700.0,116690.0,1.58318]
[1752184595809,0.13588,116700.0,116690.0,1.58318]
[1752184596313,0.13588,116700.0,116690.0,0.45494]
[1752184596512,0.13588,116700.0,116690.0,1.5801]
[1752184596715,0.0894,116700.0,116690.0,1.5801]
[1752184596908,0.0894,116700.0,116690.0,1.97539058]
[1752184597814,0.0894,116700.0,116690.0,1.5801]
[1752184598307,0.0894,116700.0,116690.0,0.45494]
[1752184598513,0.13588,116700.0,116690.0,0.45494]
[1752184599014,0.13588,116700.0,116690.0,1.48024]
[1752184599408,0.13588,116700.0,116690.0,0.36124]
[1752184599803,0.13588,116700.0,116690.0,0.44374]
[1752184601108,0.0894,116700.0,116690.0,0.43418]
[1752184601316,0.13198,116710.0,116690.0,0.82947058]
[1752184601503,0.31858,116710.0,116700.0,0.75609058]
[1752184601703,0.31914001,116710.0,116700.0,0.36124]
[1752184604813,0.31914001,116710.0,116700.0,0.37729879]
[1752184605013,0.31914001,116710.0,116700.0,0.77258937]
[1752184605415,0.31914001,116710.0,116700.0,0.37729879]
[1752184605716,0.31914001,116710.0,116700.0,0.36124]
[1752184606915,0.35097001,116710.0,116700.0,0.36124]
[1752184607306,0.14704001,116710.0,116700.0,0.75653058]
[1752184607505,0.04648,116710.0,116700.0,0.83953058]
[1752184607713,0.07831,116720.0,116700.0,0.83953058]
[1752184607917,0.0844,116710.0,116700.0,0.83953058]
[1752184608110,0.0844,116710.0,116700.0,1.20033058]
[1752184608418,0.0844,116710.0,116700.0,1.26893058]
[1752184609119,0.0844,116710.0,116700.0,0.87364]
[1752184609317,0.0844,116710.0,116700.0,1.76893058]
[1752184610114,0.0858,116720.0,116700.0,1.76893058]
[1752184610319,0.17031,116730.0,116710.0,1.94977058]
[1752184610518,0.13648,116720.0,116710.0,1.94977058]
[1752184610817,0.16831,116720.0,116710.0,1.91528]
[1752184611021,0.25071,116720.0,116710.0,1.91528]
[1752184612717,0.25071,116720.0,116710.0,2.32664929]
[1752184612921,0.25071,116720.0,116710.0,1.93135871]
[1752184613217,0.25071,116720.0,116710.0,1.93935692]
[1752184613422,0.25071,116720.0,116710.0,1.93983692]
[1752184615221,0.25071,116720.0,116710.0,0.74615692]
[1752184615522,0.25071,116720.0,116710.0,1.84183692]
[1752184615714,0.64600058,116720.0,116710.0,0.73815871]
[1752184615914,0.64656059,116720.0,116710.0,0.73815871]
[1752184616411,0.25127001,116720.0,116710.0,0.73815871]
[1752184616615,0.25071,116720.0,116710.0,0.73815871]
[1752184617714,0.25171,116720.0,116710.0,0.73815871]
[1752184618524,0.25171,116720.0,116710.0,0.72208]
[1752184620221,0.07928,116720.0,116710.0,0.00048]
[1752184620420,0.34868,116720.0,116710.0,0.3608]
[1752184620620,0.34868,116720.0,116700.0,1.45636]
[1752184620925,0.24768,116710.0,116700.0,1.45636]
[1752184621825,0.24768,116710.0,116700.0,0.3608]
[1752184622014,0.64297058,116710.0,116690.0,0.3608]
[1752184622213,0.47357058,116700.0,116680.0,0.36251402]
[1752184622417,0.57679829,116690.0,116680.0,0.36251402]
[1752184622624,0.54487829,116690.0,116680.0,0.22541402]
[1752184622820,0.04636,116680.0,116670.0,0.3608]
[1752184623226,0.44165058,116680.0,116670.0,0.36132]
[1752184623422,0.68151062,116680.0,116670.0,0.00052]
[1752184623616,0.04636,116670.0,116660.0,0.3608]
[1752184623820,0.45961775,116670.0,116660.0,0.36124]
[1752184624015,0.46017776,116670.0,116660.0,0.00044]
[1752184624231,0.04636,116660.0,116640.0,0.3625146]
[1752184624429,0.1,116660.0,116650.0,0.3608]
[1752184624617,0.54165058,116660.0,116650.0,0.00052]
[1752184624818,0.04636,116650.0,116620.0,0.3608]
[1752184625023,0.44165058,116630.0,116620.0,0.00044]
[1752184625226,0.49585059,116630.0,116610.0,0.3608]
[1752184625422,0.14636,116620.0,116610.0,0.36124]
[1752184625622,0.14636,116620.0,116610.0,0.72204]
[1752184625827,0.59636,116620.0,116610.0,0.00044]
[1752184626018,0.59636,116620.0,116600.0,0.36251519]
[1752184626019,0.04636,116610.0,116600.0,0.36251519]
[1752184626219,0.04636,116610.0,116600.0,0.36295519]
[1752184626220,0.13556,116610.0,116600.0,0.36295519]
[1752184626825,0.13556,116610.0,116600.0,0.35895519]
[1752184627126,0.04636,116610.0,116600.0,0.36124]
[1752184627326,0.13306,116620.0,116600.0,0.93177058]
[1752184627527,0.001,116620.0,116610.0,0.93133058]
[1752184627732,0.0857,116640.0,116610.0,1.10327458]
[1752184627924,0.03636,116640.0,116630.0,1.11533058]
[1752184628119,0.002,116650.0,116640.0,0.01044]
[1752184628332,0.002,116650.0,116640.0,0.45534]
[1752184628527,0.002,116650.0,116640.0,0.93483058]
[1752184628929,0.002,116650.0,116640.0,0.53954]
[1752184629129,0.002,116650.0,116640.0,0.53754]
[1752184629322,0.002,116650.0,116640.0,0.93383058]
[1752184629528,0.04836,116650.0,116640.0,0.53854]
[1752184630223,0.04936,116650.0,116640.0,0.53854]
[1752184630429,0.05036,116650.0,116640.0,0.53854]
[1752184630729,0.05036,116650.0,116640.0,0.54254]
[1752184631923,0.05036,116650.0,116640.0,0.5351]
[1752184632120,0.05036,116650.0,116640.0,0.3658]
[1752184632332,0.13906,116650.0,116640.0,0.3658]
[1752184632528,0.310524,116650.0,116640.0,0.005]
[1752184632728,0.53435058,116650.0,116640.0,0.005]
[1752184632924,0.1399,116650.0,116640.0,0.005]
[1752184633128,0.13906,116650.0,116640.0,0.3658]
[1752184633723,0.70581458,116650.0,116640.0,0.3658]
[1752184633926,0.95581458,116650.0,116640.0,0.3658]
[1752184634131,0.95581458,116650.0,116620.0,1.09552]
[1752184634132,0.04636,116640.0,116610.0,0.37723386]
[1752184634328,0.04636,116620.0,116610.0,0.37723386]
[1752184634530,0.04636,116620.0,116610.0,0.01643386]
[1752184635027,0.04636,116620.0,116610.0,0.37723386]
[1752184635228,0.04636,116610.0,116600.0,0.00171519]
[1752184635534,0.51146175,116610.0,116570.0,0.4469]
[1752184635730,0.49529058,116590.0,116580.0,0.3608]
[1752184635932,0.14724001,116590.0,116580.0,0.7216]
[1752184636131,0.04636,116590.0,116580.0,0.3608]
[1752184636328,0.14636,116590.0,116580.0,0.4469]
[1752184636826,0.14636,116590.0,116580.0,0.0861]
[1752184637033,0.14636,116590.0,116580.0,0.4469]
[1752184637333,0.54165058,116590.0,116580.0,0.4489]
[1752184637528,0.64434348,116590.0,116580.0,0.002]
[1752184637725,0.2498929,116590.0,116580.0,0.002]
[1752184638031,0.2490529,116590.0,116580.0,0.4489]
[1752184638533,0.2490529,116590.0,116580.0,0.8097]
[1752184638729,0.3397529,116590.0,116580.0,0.002]
[1752184639029,0.3405929,116590.0,116580.0,0.3628]
[1752184639230,0.73588348,116590.0,116580.0,0.3628]
[1752184639533,0.73588348,116590.0,116580.0,0.002]
[1752184640135,0.64618348,116590.0,116580.0,0.002]
[1752184640336,0.64618348,116590.0,116580.0,0.3628]
[1752184641134,0.64618348,116590.0,116580.0,0.002]
[1752184641326,0.2508929,116590.0,116580.0,0.002]
[1752184641534,0.64534348,116590.0,116580.0,0.002]
[1752184641734,0.2508929,116590.0,116580.0,0.002]
[1752184641929,0.64534348,116590.0,116580.0,0.3628]